bitfinex/quotes_ETHUSD_20250629
["timestamp","ask_amount","ask_price","bid_price","bid_amount"]
[1751191254490,0.204,2449.5,2449.4,11.97856131]
[1751191254997,5.25701827,2450.0,2449.5,4.08241511]
[1751191255202,0.204,2449.7,2449.6,6.892]
[1751191263010,0.204,2449.7,2449.4,4.0825401]
[1751191263216,0.204,2449.7,2449.6,6.873]
[1751191265419,0.204,2449.7,2449.6,6.863]
[1751191265582,4.28619306,2449.7,2449.6,6.862]
[1751191266004,0.204,2449.7,2449.6,6.862]
[1751191269522,0.204,2449.7,2449.3,4.08272424]
[1751191269726,0.204,2449.6,2449.4,6.851]
[1751191269891,0.204,2449.6,2449.3,5.00702359]
[1751191270093,0.204,2449.6,2449.4,6.85]
[1751191272234,0.204,2449.6,2449.4,10.93262881]
[1751191276336,0.204,2449.6,2449.4,6.85]
[1751191276638,0.204,2449.6,2449.4,10.93263171]
[1751191278336,0.204,2449.6,2449.4,6.85]
[1751191278641,0.204,2449.6,2449.4,10.93262753]
[1751191279641,0.204,2449.6,2449.4,4.08262753]
[1751191279851,0.204,2449.6,2449.5,6.83]
[1751191280848,0.204,2449.6,2449.5,6.826]
[1751191281146,0.204,2449.6,2449.5,6.823]
[1751191281313,0.204,2449.6,2449.3,5.00701263]
[1751191281514,0.204,2449.6,2449.4,6.821]
[1751191281710,0.204,2449.6,2449.3,5.00701263]
[1751191281910,0.204,2449.6,2449.5,6.821]
[1751191291248,0.204,2449.6,2449.3,4.08270917]
[1751191291450,0.204,2449.6,2449.5,6.803]
[1751191293333,4.28632593,2449.6,2449.2,0.8732]
[1751191293659,0.204,2449.4,2449.3,6.794]
[1751191295848,0.204,2449.4,2448.6,14.08393599]
[1751191295849,5.19155503,2449.3,2448.7,5.90868374]
[1751191296155,5.19155503,2449.3,2448.6,0.8735]
[1751191296156,4.28731363,2449.0,2448.6,1.825]
[1751191296362,0.204,2448.8,2448.7,6.791]
[1751191296925,0.204,2448.8,2448.6,11.825]
[1751191297151,0.204,2448.8,2448.7,6.792]
[1751191298251,0.204,2448.8,2448.6,14.0839601]
[1751191298458,0.204,2448.8,2448.7,6.79]
[1751191300078,0.204,2448.8,2448.7,6.79]
[1751191300845,0.204,2448.8,2448.7,6.784]
[1751191304787,0.204,2448.8,2448.7,10.86779956]
[1751191305982,0.204,2449.1,2448.9,4.08337002]
[1751191306195,0.204,2449.1,2449.0,6.773]
[1751191306595,0.204,2449.1,2449.0,10.8562993]
[1751191307177,0.204,2449.1,2449.0,11.36525689]
[1751191309198,0.204,2449.3,2449.0,12.23774361]
[1751191309402,0.204,2449.3,2449.0,11.72878602]
[1751191311202,0.204,2449.3,2449.0,10.85618602]
[1751191311972,0.204,2449.3,2449.1,6.771]
[1751191312499,0.204,2449.3,2449.0,4.08318602]
[1751191312683,1.1463,2449.3,2449.1,6.77]
[1751191313202,5.22912074,2449.3,2449.1,6.77]
[1751191315679,0.204,2449.1,2448.8,4.08354229]
[1751191316004,0.204,2449.0,2448.9,6.77]
[1751191316382,0.204,2449.0,2448.7,4.08371811]
[1751191316587,0.204,2449.0,2448.8,6.77]
[1751191317001,0.204,2449.0,2448.7,2.90403858]
[1751191317197,0.204,2449.0,2448.8,6.77]
[1751191317578,0.204,2449.0,2448.7,2.90403858]
[1751191317892,4.08302451,2449.2,2448.8,6.77]
[1751191318092,5.22917995,2449.3,2448.8,10.85362666]
[1751191318300,4.08298487,2449.2,2448.8,6.77]
[1751191318701,4.08314983,2449.1,2448.8,6.77]
[1751191319505,0.204,2448.8,2448.6,1.79]
[1751191319711,0.204,2448.8,2448.7,6.77]
[1751191322201,0.204,2448.8,2448.6,2.08308573]
[1751191322396,0.204,2448.8,2448.7,6.77]
[1751191322605,0.204,2448.8,2448.5,13.88012859]
[1751191322789,0.204,2448.8,2448.7,6.77]
[1751191323120,0.204,2448.8,2448.5,13.88012859]
[1751191323421,0.204,2448.8,2448.7,6.77]
[1751191323788,0.204,2448.8,2448.5,16.78424388]
[1751191323991,0.204,2448.8,2448.7,6.77]
[1751191324822,0.204,2448.8,2448.5,12.70011529]
[1751191324992,0.204,2448.8,2448.7,6.77]
[1751191325320,0.204,2448.8,2448.5,12.70011529]
[1751191325622,0.204,2448.8,2448.6,6.77]
[1751191329611,0.204,2448.8,2448.6,10.85393133]
[1751191330508,0.204,2448.8,2448.6,11.36294918]
[1751191330710,0.204,2448.8,2448.6,7.27901785]
[1751191330911,0.204,2448.8,2448.6,11.36285883]
[1751191331100,0.204,2448.8,2448.7,4.08379956]
[1751191331294,0.204,2448.8,2448.6,12.23549896]
[1751191333627,0.204,2448.8,2448.7,4.08379956]
[1751191333926,0.204,2448.8,2448.6,12.23549919]
[1751191334299,0.204,2448.8,2448.7,4.08379956]
[1751191334494,1.1681,2449.1,2448.8,4.08356083]
[1751191334711,1.1681,2449.1,2448.9,6.769]
[1751191334712,0.204,2449.0,2448.9,6.769]
[1751191335596,0.204,2449.0,2448.9,10.85246604]
[1751191335797,0.204,2449.0,2448.9,6.769]
[1751191336032,0.204,2449.0,2448.9,10.85246604]
[1751191336331,0.204,2449.0,2448.9,12.12463311]
[1751191337430,5.27813824,2449.6,2449.1,4.08298524]
[1751191337629,0.204,2449.2,2449.1,4.08298524]
[1751191337836,0.204,2449.2,2449.1,10.85198524]
[1751191338009,0.204,2449.2,2449.1,12.55989573]
[1751191338518,0.204,2449.4,2449.3,4.0827133]
[1751191338727,0.204,2449.4,2449.3,10.8517133]
[1751191340357,0.002,2449.8,2449.3,7.6407]
[1751191340654,0.206,2449.8,2449.3,7.8447]
[1751191340957,0.206,2449.8,2449.7,4.0821325]
[1751191341257,0.002,2449.8,2449.7,10.8501325]
[1751191341454,0.002,2449.8,2449.7,11.7218325]
[1751191341951,0.002,2449.8,2449.7,11.9258325]
[1751191342158,0.002,2449.8,2449.7,13.74799957]
[1751191343511,0.002,2449.8,2449.7,23.74799957]
[1751191345411,0.002,2449.8,2449.7,16.97999957]
[1751191345714,0.002,2449.8,2449.7,25.53399957]
[1751191348440,0.002,2449.8,2449.7,24.98399957]
[1751191348643,0.002,2449.8,2449.7,25.53399957]
[1751191349750,0.002,2449.8,2449.7,24.98299957]
[1751191351458,0.002,2449.8,2449.7,1.47616707]
[1751191351762,0.002,2449.8,2449.7,8.756]
[1751191352264,0.002,2449.8,2449.7,12.8381325]
[1751191355469,0.002,2449.8,2449.7,4.2861325]
[1751191355681,0.002,2449.8,2449.7,11.0501325]
[1751191356863,0.002,2449.8,2449.7,11.9218325]
[1751191357032,0.002,2449.8,2449.7,15.25104375]
[1751191359750,0.002,2449.8,2449.7,25.25104375]
[1751191367076,0.002,2449.8,2449.7,25.14834031]
[1751191373677,0.002,2449.8,2449.7,26.92734031]
[1751191374960,0.002,2449.8,2449.7,30.72246031]
[1751191375564,0.002,2449.8,2449.7,29.45134031]
[1751191375763,0.002,2449.8,2449.7,26.92734031]
[1751191378875,0.002,2449.8,2449.7,31.25321631]
[1751191380006,0.002,2449.8,2449.7,26.92734031]
[1751191380310,0.002,2449.8,2449.7,29.97821631]
[1751191380808,0.002,2449.8,2449.7,18.38434031]
[1751191380976,0.002,2449.8,2449.7,26.92534031]
[1751191381913,0.002,2449.8,2449.7,18.38434031]
[1751191382101,0.002,2449.8,2449.7,26.92434031]
[1751191382421,0.002,2449.8,2449.7,18.38434031]
[1751191382629,0.002,2449.8,2449.7,26.92434031]
[1751191382921,0.002,2449.8,2449.7,18.38434031]
[1751191383117,0.002,2449.8,2449.7,26.92434031]
[1751191384692,0.002,2449.8,2449.7,18.38434031]
[1751191384888,0.002,2449.8,2449.7,26.92334031]
[1751191385994,0.002,2449.8,2449.7,29.80267131]
[1751191386193,0.002,2449.8,2449.7,26.92334031]
[1751191389732,0.002,2449.8,2449.7,30.80757131]
[1751191391802,0.002,2449.8,2449.7,29.16001831]
[1751191392026,0.002,2449.8,2449.7,20.62101831]
[1751191392229,0.002,2449.8,2449.7,29.15901831]
[1751191392731,0.002,2449.8,2449.7,29.15801831]
[1751191393107,0.002,2449.8,2449.7,22.40501831]
[1751191393308,0.002,2449.8,2449.7,29.15801831]
[1751191393533,0.002,2449.8,2449.7,17.83434031]
[1751191393939,0.002,2449.8,2449.7,26.92134031]
[1751191394124,0.002,2449.8,2449.7,20.16834031]
[1751191394330,0.002,2449.8,2449.7,26.92134031]
[1751191394520,0.002,2449.8,2449.7,18.38434031]
[1751191394908,0.002,2449.8,2449.7,26.92034031]
[1751191395435,0.002,2449.8,2449.7,18.38434031]
[1751191395738,0.002,2449.8,2449.7,26.92034031]
[1751191396135,0.002,2449.8,2449.7,18.38434031]
[1751191396340,0.002,2449.8,2449.7,26.92034031]
[1751191398351,0.002,2449.8,2449.7,18.38434031]
[1751191398519,0.002,2449.8,2449.7,26.92034031]
[1751191401770,0.002,2449.8,2449.7,26.04364031]
[1751191403280,0.002,2449.8,2449.7,17.51264031]
[1751191403454,0.002,2449.8,2449.7,26.04364031]
[1751191404573,0.002,2449.8,2449.7,26.04264031]
[1751191404782,0.002,2449.8,2449.7,16.96264031]
[1751191405085,0.002,2449.8,2449.7,22.71342906]
[1751191405381,0.002,2449.8,2449.7,23.26342906]
[1751191405561,0.002,2449.8,2449.7,22.71342906]
[1751191405965,0.002,2449.8,2449.7,23.26342906]
[1751191415392,0.002,2449.8,2449.7,25.99799997]
[1751191415593,1.1271,2449.8,2449.7,4.0821325]
[1751191415886,1.1271,2449.8,2449.7,10.8301325]
[1751191416599,1.1271,2449.8,2449.7,4.0821325]
[1751191416772,1.1271,2449.8,2449.7,10.8301325]
[1751191417206,1.1271,2449.8,2449.7,4.0821325]
[1751191417395,1.1271,2449.8,2449.7,10.8291325]
[1751191422801,1.1271,2449.8,2449.7,4.0821325]
[1751191423106,1.1271,2449.8,2449.7,10.8291325]
[1751191425601,1.3311,2449.8,2449.7,10.8291325]
[1751191434877,1.3311,2449.8,2449.4,10.0]
[1751191435104,1.3311,2449.8,2449.7,4.0821325]
[1751191435307,1.3311,2449.8,2449.7,10.8271325]
[1751191435501,0.002,2449.8,2449.7,10.8271325]
[1751191437422,0.002,2449.8,2449.7,12.80738133]
[1751191437595,0.002,2449.8,2449.7,23.35738133]
[1751191437801,0.002,2449.8,2449.7,24.23058133]
[1751191439936,0.002,2449.8,2449.7,32.36574133]
[1751191442614,0.002,2449.8,2449.7,17.48558133]
[1751191442930,0.002,2449.8,2449.7,26.00358133]
[1751191449123,0.002,2449.8,2449.7,30.65358133]
[1751191452859,0.002,2449.8,2449.7,29.78038133]
[1751191453866,0.002,2450.3,2449.7,29.78038133]
[1751191453867,0.8222,2451.3,2449.8,20.465968]
[1751191454156,0.8222,2451.3,2450.8,14.63030031]
[1751191454356,0.8222,2451.3,2450.8,23.14330031]
[1751191460931,0.002,2451.9,2450.8,23.14030031]
[1751191460932,4.07872137,2451.8,2450.8,23.14030031]
[1751191461137,0.7829,2451.0,2450.8,22.59030031]
[1751191461349,0.7829,2451.0,2450.8,23.14030031]
[1751191461544,0.7829,2451.0,2450.8,22.59030031]
[1751191462069,0.7829,2451.0,2450.8,23.13930031]
[1751191463167,0.7829,2451.3,2450.8,24.91554914]
[1751191463469,0.7829,2451.5,2450.8,24.91554914]
[1751191463681,0.7829,2451.5,2450.8,16.40654914]
[1751191464005,0.8295,2451.0,2450.8,18.38054914]
[1751191464136,0.8295,2451.0,2450.8,25.11454914]
[1751191465153,0.8295,2451.2,2450.8,25.11454914]
[1751191466151,0.8295,2451.4,2450.8,25.11454914]
[1751191467278,0.8295,2451.6,2450.8,25.11454914]
[1751191468371,0.8295,2451.6,2450.8,25.11254914]
[1751191470975,0.8295,2451.6,2450.8,16.61054914]
[1751191471275,0.8295,2451.6,2450.8,25.11254914]
[1751191472184,0.8295,2451.6,2450.8,25.11154914]
[1751191473252,0.8116,2451.3,2450.8,16.61054914]
[1751191473467,0.8116,2451.3,2450.8,25.11154914]
[1751191474457,0.8116,2451.3,2450.8,16.61054914]
[1751191474656,0.8116,2451.3,2450.8,25.11054914]
[1751191476067,0.8116,2451.3,2450.8,16.61054914]
[1751191476385,0.8116,2451.3,2450.8,25.11054914]
[1751191478101,0.8116,2451.3,2450.8,16.61054914]
[1751191478280,0.8116,2451.3,2450.8,25.11054914]
[1751191479713,0.8116,2451.3,2450.8,16.61054914]
[1751191480091,0.8116,2451.3,2450.8,25.10954914]
[1751191480997,0.8116,2451.3,2450.8,16.61054914]
[1751191481216,0.8116,2451.3,2450.8,25.10954914]
[1751191492293,0.8116,2451.3,2450.8,16.61054914]
[1751191492628,0.8116,2451.3,2450.8,25.10654914]
[1751191496725,4.08055553,2451.9,2450.8,17.62254914]
[1751191496891,0.8075,2450.9,2450.8,24.34754914]
[1751191497095,0.8075,2450.9,2450.8,24.89754914]
[1751191499430,0.8075,2450.9,2450.8,34.68454914]
[1751191500844,0.002,2450.9,2450.8,34.68454914]
[1751191503561,0.002,2450.9,2450.8,39.33454914]
[1751191504435,0.002,2450.9,2450.8,30.84354914]
[1751191504636,0.002,2450.9,2450.8,39.33254914]
[1751191505461,0.002,2450.9,2450.8,30.84354914]
[1751191505667,0.002,2450.9,2450.8,32.60954914]
[1751191505866,0.002,2450.9,2450.8,39.33154914]
[1751191506564,0.002,2450.9,2450.8,30.84354914]
[1751191506755,0.002,2450.9,2450.8,39.53554914]
[1751191508165,0.002,2450.9,2450.8,26.39754914]
[1751191508375,0.002,2450.9,2450.8,34.88554914]
[1751191509142,0.002,2450.9,2450.8,34.88454914]
[1751191511663,0.002,2450.9,2450.8,26.39754914]
[1751191511867,0.002,2450.9,2450.8,34.88454914]
[1751191515441,0.002,2450.9,2450.8,34.88354914]
[1751191524160,0.002,2450.9,2450.8,28.16354914]
[1751191524360,0.002,2450.9,2450.8,38.72560814]
[1751191524560,0.002,2450.9,2450.8,34.88054914]
[1751191524887,0.002,2450.9,2450.8,34.87554914]
[1751191525985,0.002,2450.9,2450.8,49.41490914]
[1751191526286,0.002,2451.9,2451.6,4.62896883]
[1751191526484,0.7661,2451.9,2451.8,4.0786361]
[1751191526701,0.7661,2451.9,2451.8,4.2818361]
[1751191526904,0.7661,2451.9,2451.8,14.8318361]
[1751191528675,0.7661,2451.9,2451.8,22.7578361]
[1751191530190,0.7661,2451.9,2451.8,14.2818361]
[1751191530390,0.7661,2451.9,2451.8,23.52391235]
[1751191531395,0.7661,2451.9,2451.8,23.52291235]
[1751191531926,0.002,2451.9,2451.8,24.07291235]
[1751191532816,0.7953,2451.9,2451.8,24.07291235]
[1751191533017,0.7953,2451.9,2451.8,15.04791235]
[1751191533225,0.7953,2451.9,2451.8,23.52291235]
[1751191533425,0.7953,2451.9,2451.8,4.0786361]
[1751191533591,0.9985,2451.9,2451.8,8.475]
[1751191533786,0.9985,2451.9,2451.8,12.5536361]
[1751191534429,0.9985,2451.9,2451.8,8.475]
[1751191534745,0.9985,2451.9,2451.7,1.19220077]
[1751191534887,0.7828,2451.8,2451.7,7.03200323]
[1751191535085,0.2032,2451.8,2451.7,13.74500323]
[1751191535286,0.986,2451.8,2451.7,13.74500323]
[1751191535713,0.986,2451.8,2451.7,1.19220077]
[1751191535903,0.986,2451.8,2451.7,7.07190077]
[1751191536227,1.49264691,2451.8,2451.7,7.07190077]
[1751191536404,0.986,2451.8,2451.7,7.07190077]
[1751191537326,0.986,2451.8,2451.7,6.713]
[1751191540239,0.7616,2451.7,2451.1,0.2032]
[1751191540548,0.7616,2451.7,2451.4,1.761]
[1751191540843,0.7616,2451.7,2451.5,6.712]
[1751191541436,1.24562782,2451.6,2451.5,6.712]
[1751191541600,0.7616,2451.4,2450.9,4.08001392]
[1751191541797,0.7616,2451.4,2450.4,0.5294]
[1751191541798,0.9648,2451.1,2451.0,8.473]
[1751191541997,0.9648,2451.1,2451.0,6.712]
[1751191542302,0.7616,2451.0,2450.8,5.84122168]
[1751191542627,0.7616,2451.0,2450.8,4.0802406]
[1751191543000,0.7616,2451.0,2450.9,6.712]
[1751191543694,0.7616,2451.0,2450.6,0.204]
[1751191543897,0.7616,2451.0,2450.7,1.761]
[1751191544132,10.0,2451.5,2450.3,10.0]
[1751191544133,0.7985,2450.8,2450.5,4.08069975]
[1751191544432,0.7985,2450.8,2450.6,12.5536152]
[1751191544830,0.7985,2450.8,2450.6,4.0806152]
[1751191545035,0.7985,2450.8,2450.7,10.7924668]
[1751191546009,1.0025,2451.0,2450.9,4.08013382]
[1751191546221,0.7985,2451.7,2451.2,4.07956283]
[1751191546438,0.7985,2451.5,2451.3,6.712]
[1751191548917,0.7985,2451.5,2451.3,10.79141338]
[1751191549144,0.7985,2451.5,2451.3,10.791415]
[1751191549341,0.7985,2451.5,2451.4,4.07930162]
[1751191551143,0.2032,2451.7,2451.6,4.07896883]
[1751191551443,0.2032,2451.7,2451.6,10.78996883]
[1751191551859,0.002,2451.9,2451.7,4.07880246]
[1751191552357,0.002,2451.9,2451.8,4.0786361]
[1751191556746,0.002,2451.9,2451.8,5.58579996]
[1751191556953,0.002,2451.9,2451.8,5.78899996]
[1751191559041,0.002,2451.9,2451.8,14.25499996]
[1751191561989,0.002,2451.9,2451.8,14.78439996]
[1751191563481,0.002,2451.9,2451.8,15.33439996]
[1751191564983,0.002,2451.9,2451.8,6.86839996]
[1751191565281,0.002,2451.9,2451.8,14.25199996]
[1751191566081,0.002,2451.9,2451.8,4.2818361]
[1751191566263,0.002,2451.9,2451.8,12.7448361]
[1751191567079,0.002,2451.9,2451.8,4.2818361]
[1751191567292,0.002,2451.9,2451.8,12.7438361]
[1751191572259,0.002,2451.9,2451.8,4.2818361]
[1751191572457,0.002,2451.9,2451.8,13.57889996]
[1751191573002,0.002,2451.9,2451.8,14.10829996]
[1751191573398,0.002,2451.9,2451.8,14.65829996]
[1751191573563,0.002,2451.9,2451.8,24.65829996]
[1751191577120,0.002,2451.9,2451.8,24.65629996]
[1751191577712,0.002,2451.9,2451.8,16.19729996]
[1751191578019,0.002,2451.9,2451.8,24.65629996]
[1751191591150,0.002,2451.9,2451.8,29.30629996]
[1751191591961,0.002,2451.9,2451.8,29.29729996]
[1751191594956,0.002,2451.9,2451.8,20.84729996]
[1751191595163,0.002,2451.9,2451.8,29.29629996]
[1751191595746,0.002,2451.9,2451.8,20.84729996]
[1751191595934,0.002,2451.9,2451.8,29.29629996]
[1751191596258,0.002,2451.9,2451.8,24.64629996]
[1751191597561,0.002,2451.9,2451.8,16.19729996]
[1751191597866,0.002,2451.9,2451.8,24.64629996]
[1751191598568,0.002,2451.9,2451.8,16.19729996]
[1751191598769,0.002,2451.9,2451.8,24.64529996]
[1751191599264,0.002,2451.9,2451.8,16.19729996]
[1751191599469,0.002,2451.9,2451.8,24.64529996]
[1751191599674,0.002,2451.9,2451.8,31.83226396]
[1751191600035,0.002,2451.9,2451.8,36.48226396]
[1751191600678,0.002,2451.9,2451.8,50.29344896]
[1751191600973,0.002,2451.9,2451.8,29.29529996]
[1751191601375,0.002,2451.9,2451.8,38.61842596]
[1751191601673,0.002,2451.9,2451.8,34.82237096]
[1751191601890,0.002,2451.9,2451.8,24.64529996]
[1751191602096,0.002,2451.9,2451.8,27.86180396]
[1751191602692,0.002,2451.9,2451.8,32.49937096]
[1751191603773,0.002,2451.9,2451.8,37.19598166]
[1751191604093,0.002,2451.9,2451.8,32.94598166]
[1751191604267,0.002,2451.9,2451.8,32.94498166]
[1751191604473,0.002,2451.9,2451.8,33.49721955]
[1751191604672,0.002,2451.9,2451.8,50.79370055]
[1751191605691,0.002,2451.9,2451.8,53.05256755]
[1751191605889,0.002,2451.9,2451.8,36.76734655]
[1751191606071,0.002,2451.9,2451.8,31.54405855]
[1751191606261,0.002,2451.9,2451.8,30.99182066]
[1751191606690,0.002,2451.9,2451.8,25.45521166]
[1751191606865,0.002,2451.9,2451.8,34.56353666]
[1751191607706,0.002,2451.9,2451.8,25.45521166]
[1751191608008,0.002,2451.9,2451.8,40.98568666]
[1751191608205,0.002,2452.7,2452.6,4.62730571]
[1751191608366,0.002,2452.7,2452.6,33.31703628]
[1751191608565,0.002,2452.7,2452.6,33.52023628]
[1751191609062,0.002,2452.7,2452.6,25.07523628]
[1751191609259,0.002,2452.7,2452.6,33.52023628]
[1751191611992,0.002,2452.7,2452.6,33.05750571]
[1751191612162,0.002,2452.7,2452.6,24.61250571]
[1751191612368,0.002,2452.7,2452.6,33.05650571]
[1751191617204,0.002,2452.7,2452.6,24.61250571]
[1751191617389,0.8196,2452.7,2452.6,15.81050571]
[1751191617593,0.8196,2452.7,2452.6,22.50250571]
[1751191618305,0.8196,2452.7,2452.6,14.06250571]
[1751191618676,0.8196,2452.7,2452.6,22.50150571]
[1751191621675,0.8196,2452.7,2452.6,25.62857499]
[1751191621931,0.002,2452.7,2452.6,25.62857499]
[1751191623013,0.002,2452.7,2452.6,36.15797499]
[1751191623205,0.002,2452.7,2452.6,35.62857499]
[1751191623406,0.002,2452.7,2452.6,36.12857499]
[1751191630812,0.002,2452.7,2452.6,36.65797499]
[1751191633942,0.002,2452.7,2452.6,27.68957499]
[1751191634114,0.002,2452.7,2452.6,26.12557499]
[1751191634446,0.002,2452.7,2452.6,36.12557499]
[1751191635627,0.002,2452.7,2452.6,26.31050571]
[1751191635843,0.002,2452.7,2452.6,25.11250571]
[1751191636244,0.002,2452.7,2452.6,33.54850571]
[1751191636446,0.002,2452.7,2452.6,33.54750571]
[1751191637236,0.002,2452.7,2452.6,25.11250571]
[1751191637559,0.002,2452.7,2452.6,33.54750571]
[1751191641975,0.002,2452.7,2452.6,33.54650571]
[1751191641976,0.7691,2452.7,2452.6,33.54650571]
[1751191642170,0.7691,2452.7,2452.6,14.56250571]
[1751191642373,0.7691,2452.7,2452.6,16.31050571]
[1751191642543,0.7691,2452.7,2452.6,22.99650571]
[1751191643075,0.7691,2452.7,2452.6,23.54650571]
[1751191643456,0.7691,2452.7,2452.6,23.04650571]
[1751191644045,0.002,2452.7,2452.6,23.04650571]
[1751191644344,0.002,2452.7,2452.6,25.75890022]
[1751191645360,0.002,2452.7,2452.6,26.25890022]
[1751191646344,0.002,2452.7,2452.6,26.78830022]
[1751191648359,0.002,2452.7,2452.6,17.82490022]
[1751191648561,0.002,2452.7,2452.6,26.25390022]
[1751191649883,0.002,2452.7,2452.6,36.25390022]
[1751191650391,0.002,2452.7,2452.6,27.82490022]
[1751191650588,0.002,2452.7,2452.6,36.25390022]
[1751191651486,0.002,2452.7,2452.6,36.78330022]
[1751191652974,0.002,2452.7,2452.6,36.28330022]
[1751191655109,0.002,2452.7,2452.6,41.31074822]
[1751191655700,0.002,2452.7,2452.6,36.28330022]
[1751191655885,0.002,2452.7,2452.6,42.63662022]
[1751191656396,0.002,2452.7,2452.6,41.19282522]
[1751191658235,0.002,2452.7,2452.6,39.44544622]
[1751191658522,0.002,2452.7,2452.6,39.44344622]
[1751191658722,0.002,2452.7,2452.6,36.78130022]
[1751191659528,0.002,2452.7,2452.6,27.27490022]
[1751191659733,0.002,2452.7,2452.6,35.70190022]
[1751191659904,0.002,2452.7,2452.6,36.25190022]
[1751191661433,0.002,2452.7,2452.6,36.25090022]
[1751191662028,0.002,2452.7,2452.6,36.78030022]
[1751191662229,0.002,2452.7,2452.6,44.52197022]
[1751191662422,0.002,2452.7,2452.6,41.91449022]
[1751191662625,0.002,2452.7,2452.6,41.65449022]
[1751191663831,0.002,2452.7,2452.6,42.20672811]
[1751191664526,0.002,2452.9,2452.8,35.15637325]
[1751191664827,0.002,2452.9,2452.8,46.17364877]
[1751191665005,0.002,2452.9,2452.8,29.43944977]
[1751191665413,0.002,2452.9,2452.8,30.43735377]
[1751191665637,0.002,2452.9,2452.8,28.30377677]
[1751191666329,0.002,2452.9,2452.8,35.52072277]
[1751191666698,0.002,2452.9,2452.8,30.12572277]
[1751191667047,0.002,2452.9,2452.8,24.48431188]
[1751191667200,0.002,2452.9,2452.8,15.51031188]
[1751191667400,0.002,2452.9,2452.8,23.93431188]
[1751191667700,0.002,2452.9,2452.8,24.48431188]
[1751191668628,0.002,2452.9,2452.8,23.95491188]
[1751191670120,0.7832,2453.9,2453.6,4.62564395]
[1751191670299,0.7842,2453.9,2453.6,13.04864395]
[1751191671119,0.7842,2453.9,2453.6,24.76108603]
[1751191672036,0.001,2453.9,2453.6,24.76108603]
[1751191679861,0.001,2453.9,2453.6,25.29048603]
[1751191680067,0.001,2453.9,2453.6,25.49368603]
[1751191682769,0.001,2453.9,2453.6,26.04592392]
[1751191682957,0.001,2453.9,2453.6,47.72628292]
[1751191683157,0.001,2453.9,2453.6,53.16954992]
[1751191683353,0.001,2453.9,2453.6,49.69918792]
[1751191683554,0.001,2453.9,2453.6,47.28549492]
[1751191683764,0.001,2453.9,2453.6,46.85185092]
[1751191684132,0.001,2453.9,2453.6,46.86503492]
[1751191684332,0.001,2453.9,2453.6,46.50213492]
[1751191684640,0.001,2453.9,2453.6,26.04592392]
[1751191684968,0.001,2453.9,2453.6,46.82942192]
[1751191686176,0.001,2453.9,2453.6,26.04592392]
[1751191686472,0.001,2453.9,2453.6,46.82654892]
[1751191686971,0.001,2453.9,2453.6,46.56654892]
[1751191687266,0.001,2453.9,2453.6,26.04592392]
[1751191687567,0.001,2453.9,2453.6,34.35752992]
[1751191688433,0.001,2453.9,2453.6,34.75752992]
[1751191689581,0.001,2453.9,2453.6,37.99162992]
[1751191690160,0.001,2453.9,2453.6,24.40428603]
[1751191690489,0.001,2453.9,2453.6,24.95428603]
[1751191690688,0.001,2453.9,2453.6,32.04475603]
[1751191690891,0.001,2453.9,2453.6,28.66575603]
[1751191691190,0.001,2453.9,2453.6,35.20385603]
[1751191691390,0.001,2453.9,2453.6,31.70385603]
[1751191691598,0.001,2453.9,2453.6,32.23325603]
[1751191692182,0.001,2453.9,2453.6,56.60892499]
[1751191692504,0.001,2453.9,2453.6,60.90492499]
[1751191693993,0.001,2453.9,2453.6,42.25046503]
[1751191694205,0.001,2453.9,2453.6,55.42169003]
[1751191694368,0.001,2453.9,2453.6,60.26992792]
[1751191695394,0.001,2453.9,2453.6,60.32992392]
[1751191695890,0.001,2453.9,2453.8,45.15471176]
[1751191696096,0.001,2453.9,2453.8,62.80286419]
[1751191696458,0.001,2453.9,2453.8,58.56300119]
[1751191696663,0.001,2453.9,2453.8,55.06300119]
[1751191696862,0.001,2453.9,2453.8,43.12446419]
[1751191697096,0.001,2453.9,2453.8,31.52389819]
[1751191697295,0.001,2453.9,2453.8,37.95655219]
[1751191697487,0.001,2453.9,2453.8,42.60655219]
[1751191698175,0.001,2453.9,2453.8,39.19186419]
[1751191698376,0.001,2453.9,2453.8,48.95676919]
[1751191698560,0.001,2453.9,2453.8,34.16418519]
[1751191698757,0.001,2453.9,2453.8,42.57418519]
[1751191699198,0.002,2454.3,2454.2,4.62464754]
[1751191699399,0.002,2454.3,2454.2,22.72798617]
[1751191700904,0.002,2454.3,2454.2,52.72798617]
[1751191701079,0.002,2454.3,2454.2,57.37798617]
[1751191701279,0.002,2454.3,2454.2,57.93022406]
[1751191702611,0.001,2455.3,2455.2,14.62298794]
[1751191702764,0.001,2455.3,2455.2,34.51743002]
[1751191703103,0.8067,2455.3,2455.2,34.72063002]
[1751191703666,0.001,2455.3,2455.2,34.72063002]
[1751191703896,0.7917,2455.3,2455.2,34.72063002]
[1751191704091,0.001,2455.3,2455.2,34.72063002]
[1751191707403,0.001,2455.3,2455.2,64.72063002]
[1751191708483,0.001,2455.3,2455.2,63.64387602]
[1751191709226,0.001,2456.3,2455.4,4.07265618]
[1751191709507,0.7513,2456.3,2456.2,14.62132969]
[1751191709812,0.7513,2456.3,2456.2,23.02432969]
[1751191710708,0.7513,2456.3,2456.2,23.02332969]
[1751191710910,0.7513,2456.3,2456.2,14.62132969]
[1751191711072,0.7513,2456.3,2456.2,23.72306832]
[1751191712209,0.001,2456.3,2456.2,23.72306832]
[1751191712601,0.11124782,2456.6,2456.5,4.62083248]